[Event "Late-Titled-Tuesday-Blitz-October-03-2023"]
[Site "Chess.com"]
[Date "2023.10.03"]
[Round "9"]
[White "GlavkonVVS"]
[Black "PapaieDudu"]
[Result "1-0"]
[WhiteElo "2569"]
[BlackElo "2382"]
[TimeControl "180+1"]
[EndTime "15:41:55 PDT"]
[Termination "GlavkonVVS won by checkmate"]

1. c4 {[%clk 0:03:00.9]} 1... e6 {[%clk 0:02:59.5]} 2. Nc3 {[%clk 0:03:01.5]}
2... d5 {[%clk 0:03:00.2]} 3. g3 {[%clk 0:03:01.3]} 3... Nf6 {[%clk 0:03:00.5]}
4. Bg2 {[%clk 0:03:01.7]} 4... a6 {[%clk 0:03:00.3]} 5. cxd5 {[%clk 0:03:00.7]}
5... exd5 {[%clk 0:02:58.9]} 6. d4 {[%clk 0:02:59.5]} 6... Bd6 {[%clk
0:02:57.1]} 7. Nf3 {[%clk 0:02:59.7]} 7... O-O {[%clk 0:02:57.2]} 8. O-O {[%clk
0:02:59.9]} 8... Re8 {[%clk 0:02:57.6]} 9. Bg5 {[%clk 0:02:59.6]} 9... c6 {[%clk
0:02:57.3]} 10. e3 {[%clk 0:02:57.8]} 10... h6 {[%clk 0:02:57]} 11. Bxf6 {[%clk
0:02:58.2]} 11... Qxf6 {[%clk 0:02:57.3]} 12. Ne1 {[%clk 0:02:55]} 12... Bf5
{[%clk 0:02:52.9]} 13. Nd3 {[%clk 0:02:52.8]} 13... Nd7 {[%clk 0:02:51.3]} 14.
Nf4 {[%clk 0:02:44.1]} 14... Re7 {[%clk 0:02:45.9]} 15. Nfxd5 {[%clk 0:02:25.7]}
15... cxd5 {[%clk 0:02:46]} 16. Nxd5 {[%clk 0:02:25.9]} 16... Qe6 {[%clk
0:02:42.2]} 17. Nxe7+ {[%clk 0:02:21.3]} 17... Qxe7 {[%clk 0:02:37.4]} 18. Rc1
{[%clk 0:02:11.1]} 18... Nf6 {[%clk 0:02:30.3]} 19. Qb3 {[%clk 0:02:04.3]} 19...
Rb8 {[%clk 0:02:26.2]} 20. f3 {[%clk 0:01:59.3]} 20... Be6 {[%clk 0:02:16.1]}
21. Qd3 {[%clk 0:01:57.9]} 21... Nd5 {[%clk 0:02:15.3]} 22. a3 {[%clk
0:01:53.7]} 22... b5 {[%clk 0:02:04.5]} 23. e4 {[%clk 0:01:52.8]} 23... Nb6
{[%clk 0:01:58.5]} 24. Rfd1 {[%clk 0:01:50.6]} 24... Nc4 {[%clk 0:01:53.2]} 25.
Qe2 {[%clk 0:01:50.2]} 25... Rd8 {[%clk 0:01:42.7]} 26. a4 {[%clk 0:01:35.8]}
26... Qa7 {[%clk 0:01:31.4]} 27. axb5 {[%clk 0:01:34]} 27... axb5 {[%clk
0:01:21.7]} 28. Kh1 {[%clk 0:01:20.3]} 28... Bb4 {[%clk 0:01:02.4]} 29. b3
{[%clk 0:01:12.1]} 29... Na5 {[%clk 0:00:49.9]} 30. d5 {[%clk 0:01:11.8]} 30...
Bd7 {[%clk 0:00:46.5]} 31. Qd3 {[%clk 0:01:03.6]} 31... Qb8 {[%clk 0:00:40]} 32.
f4 {[%clk 0:01:02.1]} 32... Bg4 {[%clk 0:00:39.1]} 33. Bf3 {[%clk 0:01:01.1]}
33... Be6 {[%clk 0:00:38.4]} 34. dxe6 {[%clk 0:00:42.6]} 34... Rxd3 {[%clk
0:00:37.6]} 35. exf7+ {[%clk 0:00:43]} 35... Kxf7 {[%clk 0:00:36.7]} 36. Rxd3
{[%clk 0:00:43.7]} 36... Be7 {[%clk 0:00:26]} 37. e5 {[%clk 0:00:42.5]} 37...
Qb6 {[%clk 0:00:20.8]} 38. Bd5+ {[%clk 0:00:38.2]} 38... Kg6 {[%clk 0:00:20.4]}
39. Kg2 {[%clk 0:00:37.4]} 39... b4 {[%clk 0:00:12.9]} 40. Kf3 {[%clk
0:00:36.7]} 40... h5 {[%clk 0:00:10.4]} 41. h3 {[%clk 0:00:36.3]} 41... Qa6
{[%clk 0:00:09.9]} 42. Be4+ {[%clk 0:00:34]} 42... Kf7 {[%clk 0:00:09.8]} 43.
Rc7 {[%clk 0:00:33.1]} 43... Nxb3 {[%clk 0:00:08.6]} 44. Bd5+ {[%clk 0:00:21.2]}
44... Kg6 {[%clk 0:00:08.1]} 45. Rxb3 {[%clk 0:00:20.8]} 45... Qf1+ {[%clk
0:00:08.5]} 46. Ke4 {[%clk 0:00:21]} 46... Qe2+ {[%clk 0:00:06.2]} 47. Re3
{[%clk 0:00:19.5]} 47... Qg2+ {[%clk 0:00:03.6]} 48. Kd4 {[%clk 0:00:19.7]}
48... Qd2+ {[%clk 0:00:03.6]} 49. Rd3 {[%clk 0:00:19.9]} 49... Qf2+ {[%clk
0:00:04.2]} 50. Kc4 {[%clk 0:00:20.2]} 50... Qc2+ {[%clk 0:00:04.2]} 51. Kb5
{[%clk 0:00:16.8]} 51... Qxc7 {[%clk 0:00:05]} 52. Bc6 {[%clk 0:00:16.2]} 52...
Qb8+ {[%clk 0:00:05]} 53. Kc4 {[%clk 0:00:16.1]} 53... Qc7 {[%clk 0:00:04.4]}
54. Kd5 {[%clk 0:00:15.5]} 54... Qa5+ {[%clk 0:00:04.1]} 55. Ke4 {[%clk
0:00:15.5]} 55... Qc5 {[%clk 0:00:02.3]} 56. Be8+ {[%clk 0:00:14.6]} 56... Kh7
{[%clk 0:00:01.8]} 57. Bf7 {[%clk 0:00:15]} 57... Qc4+ {[%clk 0:00:02.3]} 58.
Bxc4 {[%clk 0:00:15]} 58... g5 {[%clk 0:00:02]} 59. f5 {[%clk 0:00:15.1]} 59...
g4 {[%clk 0:00:02]} 60. hxg4 {[%clk 0:00:15.5]} 60... hxg4 {[%clk 0:00:02.9]}
61. f6 {[%clk 0:00:16]} 61... Bxf6 {[%clk 0:00:03.3]} 62. exf6 {[%clk
0:00:16.2]} 62... Kg6 {[%clk 0:00:04]} 63. Ke5 {[%clk 0:00:16.8]} 63... Kg5
{[%clk 0:00:03.9]} 64. Rb3 {[%clk 0:00:16.5]} 64... Kh6 {[%clk 0:00:04.3]} 65.
Rxb4 {[%clk 0:00:16.9]} 65... Kg6 {[%clk 0:00:05]} 66. Rb8 {[%clk 0:00:16.9]}
66... Kh5 {[%clk 0:00:05.6]} 67. Rg8 {[%clk 0:00:16.6]} 67... Kh6 {[%clk
0:00:06.1]} 68. f7 {[%clk 0:00:17.1]} 68... Kh7 {[%clk 0:00:05.7]} 69. Kf6
{[%clk 0:00:15.5]} 69... Kh6 {[%clk 0:00:05.4]} 70. Rh8# {[%clk 0:00:15.6]} 1-0

[Event "Late-Titled-Tuesday-Blitz-October-03-2023"]
[Site "Chess.com"]
[Date "2023.10.03"]
[Round "9"]
[White "I_am_Javi"]
[Black "SanchezKelvin"]
[Result "1-0"]
[WhiteElo "2753"]
[BlackElo "2580"]
[TimeControl "180+1"]
[EndTime "15:41:58 PDT"]
[Termination "I_am_Javi won by resignation"]

1. e4 {[%clk 0:02:50.3]} 1... e5 {[%clk 0:02:59.5]} 2. Nf3 {[%clk 0:02:50.7]}
2... Nc6 {[%clk 0:02:59.1]} 3. d4 {[%clk 0:02:51.3]} 3... exd4 {[%clk
0:02:58.9]} 4. Bc4 {[%clk 0:02:52.2]} 4... Bc5 {[%clk 0:02:58]} 5. O-O {[%clk
0:02:52.8]} 5... d6 {[%clk 0:02:51.2]} 6. c3 {[%clk 0:02:52.6]} 6... Nf6 {[%clk
0:02:35.3]} 7. cxd4 {[%clk 0:02:50.7]} 7... Bb6 {[%clk 0:02:35.6]} 8. d5 {[%clk
0:02:26]} 8... Ne5 {[%clk 0:02:22.2]} 9. Nxe5 {[%clk 0:02:26.5]} 9... dxe5
{[%clk 0:02:22.2]} 10. Nc3 {[%clk 0:02:27.4]} 10... O-O {[%clk 0:02:21.1]} 11.
Kh1 {[%clk 0:02:27.9]} 11... Bd4 {[%clk 0:02:12.3]} 12. f3 {[%clk 0:02:24.5]}
12... h6 {[%clk 0:02:10]} 13. Ne2 {[%clk 0:02:23.5]} 13... Bb6 {[%clk
0:02:09.7]} 14. Qe1 {[%clk 0:02:15.3]} 14... Nh5 {[%clk 0:02:05.2]} 15. Ng3
{[%clk 0:02:15]} 15... Nf4 {[%clk 0:01:59.2]} 16. Bxf4 {[%clk 0:01:58.5]} 16...
exf4 {[%clk 0:02:00.1]} 17. Ne2 {[%clk 0:01:58.8]} 17... Qf6 {[%clk 0:01:58.1]}
18. Qc3 {[%clk 0:01:58.1]} 18... Qxc3 {[%clk 0:01:56]} 19. bxc3 {[%clk 0:01:59]}
19... g5 {[%clk 0:01:54.4]} 20. Rfd1 {[%clk 0:01:53.7]} 20... Kg7 {[%clk
0:01:51.2]} 21. a4 {[%clk 0:01:50.4]} 21... Bc5 {[%clk 0:01:50]} 22. a5 {[%clk
0:01:48.8]} 22... a6 {[%clk 0:01:48.2]} 23. Nc1 {[%clk 0:01:42.3]} 23... Bd6
{[%clk 0:01:46.9]} 24. Nd3 {[%clk 0:01:42.1]} 24... f6 {[%clk 0:01:46.8]} 25.
Rab1 {[%clk 0:01:42.3]} 25... Re8 {[%clk 0:01:40.6]} 26. Re1 {[%clk 0:01:40.9]}
26... Re7 {[%clk 0:01:40.1]} 27. Kg1 {[%clk 0:01:37.3]} 27... Ra7 {[%clk
0:01:39.3]} 28. Re2 {[%clk 0:01:14]} 28... Bd7 {[%clk 0:01:38.8]} 29. Kf2 {[%clk
0:01:13.7]} 29... Be8 {[%clk 0:01:35]} 30. g3 {[%clk 0:00:53.2]} 30... fxg3+
{[%clk 0:01:32.2]} 31. hxg3 {[%clk 0:00:54.1]} 31... Bg6 {[%clk 0:01:29.2]} 32.
Reb2 {[%clk 0:00:51]} 32... c6 {[%clk 0:01:08.7]} 33. dxc6 {[%clk 0:00:51.9]}
33... bxc6 {[%clk 0:01:06.3]} 34. Rb6 {[%clk 0:00:47.9]} 34... Bc7 {[%clk
0:01:03.3]} 35. Rxc6 {[%clk 0:00:39.8]} 35... Bxa5 {[%clk 0:01:02.9]} 36. Nc5
{[%clk 0:00:20]} 36... Bxc3 {[%clk 0:00:56]} 37. Ne6+ {[%clk 0:00:19.7]} 37...
Kh7 {[%clk 0:00:55.2]} 38. Rb8 {[%clk 0:00:18.7]} 38... Bf7 {[%clk 0:00:48.5]}
39. Nf8+ {[%clk 0:00:13.2]} 39... Kg7 {[%clk 0:00:48.6]} 40. Bxf7 {[%clk
0:00:11.7]} 40... Kxf7 {[%clk 0:00:48.2]} 41. Rcc8 {[%clk 0:00:09.7]} 41... Be5
{[%clk 0:00:46.8]} 42. Rb1 {[%clk 0:00:05.8]} 42... Rac7 {[%clk 0:00:42.2]} 43.
Rxc7 {[%clk 0:00:05.2]} 43... Rxc7 {[%clk 0:00:42.2]} 44. Nh7 {[%clk 0:00:03.2]}
44... Kg7 {[%clk 0:00:41.9]} 45. Ke3 {[%clk 0:00:04.1]} 45... Bxg3 {[%clk
0:00:39.9]} 46. Nxf6 {[%clk 0:00:04.2]} 46... Bf4+ {[%clk 0:00:36.2]} 47. Kd4
{[%clk 0:00:03.8]} 47... Kxf6 {[%clk 0:00:36.8]} 48. Rb6+ {[%clk 0:00:04.2]}
48... Kg7 {[%clk 0:00:37]} 49. Rxa6 {[%clk 0:00:04.7]} 49... Rd7+ {[%clk
0:00:37.5]} 50. Kc4 {[%clk 0:00:05.2]} 50... Be5 {[%clk 0:00:36.5]} 51. Ra5
{[%clk 0:00:05.1]} 51... Kf6 {[%clk 0:00:35.5]} 52. Ra6+ {[%clk 0:00:05.1]}
52... Rd6 {[%clk 0:00:36.1]} 53. Ra8 {[%clk 0:00:04.7]} 53... Rd4+ {[%clk
0:00:36.2]} 54. Kc5 {[%clk 0:00:04.7]} 54... Rd3 {[%clk 0:00:36.4]} 55. Kc4
{[%clk 0:00:04.8]} 55... Rxf3 {[%clk 0:00:35.3]} 56. Rf8+ {[%clk 0:00:04.2]}
56... Ke6 {[%clk 0:00:32.9]} 57. Rxf3 {[%clk 0:00:05.1]} 57... Bf4 {[%clk
0:00:33.4]} 58. Kd4 {[%clk 0:00:04.7]} 58... h5 {[%clk 0:00:33.2]} 59. Ra3
{[%clk 0:00:05.3]} 59... Be5+ {[%clk 0:00:29.3]} 60. Kc4 {[%clk 0:00:05.2]}
60... Bd6 {[%clk 0:00:29.1]} 61. Ra6 {[%clk 0:00:05.9]} 61... Ke5 {[%clk
0:00:29.3]} 62. Kd3 {[%clk 0:00:06.4]} 62... h4 {[%clk 0:00:28]} 63. Ke3 {[%clk
0:00:06.1]} 63... g4 {[%clk 0:00:27.1]} 64. Ra5+ {[%clk 0:00:05.9]} 64... Kf6
{[%clk 0:00:26.9]} 65. Rh5 {[%clk 0:00:06.3]} 65... Bg3 {[%clk 0:00:25.8]} 66.
e5+ {[%clk 0:00:05.7]} 66... Kg6 {[%clk 0:00:26.3]} 67. Rh8 {[%clk 0:00:05.9]}
67... h3 {[%clk 0:00:26.1]} 68. Ke4 {[%clk 0:00:05.8]} 68... h2 {[%clk
0:00:26.4]} 69. Kd5 {[%clk 0:00:03.9]} 69... Kf5 {[%clk 0:00:25.7]} 70. e6
{[%clk 0:00:04.1]} 70... Kf6 {[%clk 0:00:23.7]} 71. Rh6+ {[%clk 0:00:04]} 71...
Ke7 {[%clk 0:00:23.5]} 72. Rh7+ {[%clk 0:00:04.3]} 72... Ke8 {[%clk 0:00:23.1]}
73. e7 {[%clk 0:00:04.8]} 73... Bf4 {[%clk 0:00:21.3]} 74. Ke6 {[%clk
0:00:05.2]} 74... Be5 {[%clk 0:00:20.5]} 75. Kxe5 {[%clk 0:00:05]} 75... g3
{[%clk 0:00:20.7]} 76. Ke6 {[%clk 0:00:05.6]} 76... h1=Q {[%clk 0:00:21.3]} 77.
Rxh1 {[%clk 0:00:06]} 1-0

[Event "Late-Titled-Tuesday-Blitz-October-03-2023"]
[Site "Chess.com"]
[Date "2023.10.03"]
[Round "9"]
[White "ContrVersia"]
[Black "mishanick"]
[Result "1-0"]
[WhiteElo "2890"]
[BlackElo "2998"]
[TimeControl "180+1"]
[EndTime "15:42:20 PDT"]
[Termination "ContrVersia won on time"]

1. Nf3 {[%clk 0:02:42.7]} 1... d5 {[%clk 0:02:58.8]} 2. c4 {[%clk 0:02:43.1]}
2... d4 {[%clk 0:02:58.8]} 3. b4 {[%clk 0:02:42.7]} 3... f6 {[%clk 0:02:59.3]}
4. e3 {[%clk 0:02:42.1]} 4... e5 {[%clk 0:02:57.9]} 5. c5 {[%clk 0:02:42.5]}
5... a5 {[%clk 0:02:48.9]} 6. Qa4+ {[%clk 0:02:42.5]} 6... Qd7 {[%clk
0:02:49.1]} 7. Bb5 {[%clk 0:02:41]} 7... c6 {[%clk 0:02:49.5]} 8. Bc4 {[%clk
0:02:40.9]} 8... dxe3 {[%clk 0:02:50]} 9. fxe3 {[%clk 0:02:40]} 9... Qg4 {[%clk
0:02:50.4]} 10. Qb3 {[%clk 0:02:25.3]} 10... Qxg2 {[%clk 0:02:07.9]} 11. Rf1
{[%clk 0:02:23]} 11... Nh6 {[%clk 0:01:57.2]} 12. Nc3 {[%clk 0:02:09.6]} 12...
axb4 {[%clk 0:01:52.6]} 13. Ne4 {[%clk 0:02:03.6]} 13... Na6 {[%clk 0:01:23.5]}
14. d4 {[%clk 0:01:59.5]} 14... Bg4 {[%clk 0:01:18]} 15. Be2 {[%clk 0:01:31.9]}
15... exd4 {[%clk 0:01:10.1]} 16. Rg1 {[%clk 0:01:23.8]} 16... Qh3 {[%clk
0:01:07.1]} 17. Nf2 {[%clk 0:01:23.5]} 17... Qh5 {[%clk 0:00:57.4]} 18. Nxg4
{[%clk 0:01:23.5]} 18... Nxg4 {[%clk 0:00:54.4]} 19. Qe6+ {[%clk 0:01:22.8]}
19... Be7 {[%clk 0:00:55.1]} 20. Qxg4 {[%clk 0:00:57.4]} 20... Qxg4 {[%clk
0:00:44.9]} 21. Rxg4 {[%clk 0:00:58.3]} 21... Nxc5 {[%clk 0:00:45.2]} 22. Nxd4
{[%clk 0:00:39]} 22... g6 {[%clk 0:00:45.2]} 23. Bd2 {[%clk 0:00:33.6]} 23... b3
{[%clk 0:00:42]} 24. Bc4 {[%clk 0:00:28.3]} 24... b5 {[%clk 0:00:34.7]} 25. Bxb3
{[%clk 0:00:26.3]} 25... Nxb3 {[%clk 0:00:32.8]} 26. Nxb3 {[%clk 0:00:27.2]}
26... c5 {[%clk 0:00:33.6]} 27. Rc1 {[%clk 0:00:21.7]} 27... Kf7 {[%clk
0:00:28.4]} 28. Nxc5 {[%clk 0:00:20.3]} 28... Rxa2 {[%clk 0:00:29.1]} 29. Rb4
{[%clk 0:00:17.7]} 29... Rb8 {[%clk 0:00:27.7]} 30. Rb3 {[%clk 0:00:14.9]} 30...
Rd8 {[%clk 0:00:22.9]} 31. Rd3 {[%clk 0:00:11]} 31... Bd6 {[%clk 0:00:13]} 32.
Ke2 {[%clk 0:00:08.5]} 32... Be7 {[%clk 0:00:04.6]} 33. Rxd8 {[%clk 0:00:08.7]}
33... Bxd8 {[%clk 0:00:05.5]} 34. Rb1 {[%clk 0:00:08.6]} 34... Ba5 {[%clk
0:00:06.1]} 35. Nb3 {[%clk 0:00:09.1]} 35... Bc7 {[%clk 0:00:06.6]} 36. h3
{[%clk 0:00:07.7]} 36... Bd6 {[%clk 0:00:03.4]} 37. Nd4 {[%clk 0:00:07.3]} 37...
b4 {[%clk 0:00:03.9]} 38. Kd3 {[%clk 0:00:07.7]} 38... Ra3+ {[%clk 0:00:03.8]}
39. Ke2 {[%clk 0:00:07.2]} 39... Ra2 {[%clk 0:00:04.1]} 40. Kd3 {[%clk
0:00:07.6]} 40... Ra3+ {[%clk 0:00:04.2]} 41. Kc4 {[%clk 0:00:08.1]} 41... Be7
{[%clk 0:00:01.8]} 42. Rb3 {[%clk 0:00:06.9]} 42... Ra2 {[%clk 0:00:01.8]} 43.
Bxb4 {[%clk 0:00:06.9]} 43... Bxb4 {[%clk 0:00:01.6]} 44. Kxb4 {[%clk
0:00:07.8]} 44... g5 {[%clk 0:00:01.5]} 45. Kc4 {[%clk 0:00:07.2]} 45... Rh2
{[%clk 0:00:02.1]} 46. e4 {[%clk 0:00:07.5]} 46... Kg6 {[%clk 0:00:01.7]} 47.
Kd5 {[%clk 0:00:07.4]} 47... Rd2 {[%clk 0:00:02.4]} 48. Rf3 {[%clk 0:00:06.6]}
48... h5 {[%clk 0:00:02.3]} 49. Rg3 {[%clk 0:00:06.8]} 49... Rd1 {[%clk
0:00:02.7]} 50. Rf3 {[%clk 0:00:07]} 50... Rd2 {[%clk 0:00:03.2]} 51. Kc4 {[%clk
0:00:07.5]} 51... Rd1 {[%clk 0:00:02.7]} 52. Ra3 {[%clk 0:00:07.6]} 52... Re1
{[%clk 0:00:02.7]} 53. Kd5 {[%clk 0:00:07.8]} 53... Rd1 {[%clk 0:00:03.4]} 54.
Rg3 {[%clk 0:00:07]} 54... Rd2 {[%clk 0:00:03.7]} 55. Rg1 {[%clk 0:00:06.7]}
55... Kf7 {[%clk 0:00:03.4]} 56. Rg3 {[%clk 0:00:05.3]} 56... Kg6 {[%clk
0:00:03.7]} 57. Rc3 {[%clk 0:00:04.8]} 57... Rd1 {[%clk 0:00:03.9]} 58. Rc6
{[%clk 0:00:03.9]} 58... Rd3 {[%clk 0:00:04.2]} 59. e5 {[%clk 0:00:04.1]} 59...
Rxh3 {[%clk 0:00:03.3]} 60. Rxf6+ {[%clk 0:00:04.5]} 60... Kh7 {[%clk
0:00:04.1]} 61. Nf5 {[%clk 0:00:04.3]} 61... Rd3+ {[%clk 0:00:04]} 62. Ke6
{[%clk 0:00:04.2]} 62... h4 {[%clk 0:00:04.8]} 63. Rh6+ {[%clk 0:00:03.7]} 63...
Kg8 {[%clk 0:00:04.9]} 64. Rg6+ {[%clk 0:00:04.3]} 64... Kh7 {[%clk 0:00:03.5]}
65. Rg7+ {[%clk 0:00:04.6]} 65... Kh8 {[%clk 0:00:03.4]} 66. Rxg5 {[%clk
0:00:05.5]} 66... h3 {[%clk 0:00:03.8]} 67. Kf6 {[%clk 0:00:05.4]} 67... Rf3
{[%clk 0:00:02.8]} 68. e6 {[%clk 0:00:05.1]} 68... h2 {[%clk 0:00:03]} 69. e7
{[%clk 0:00:04]} 69... Re3 {[%clk 0:00:01.4]} 70. Rh5+ {[%clk 0:00:03.9]} 70...
Kg8 {[%clk 0:00:02.1]} 71. Rxh2 {[%clk 0:00:02.7]} 71... Re6+ {[%clk 0:00:02.7]}
72. Kg5 {[%clk 0:00:02.7]} 72... Rg6+ {[%clk 0:00:03.4]} 73. Kf4 {[%clk
0:00:02.8]} 73... Re6 {[%clk 0:00:04]} 74. Rg2+ {[%clk 0:00:02.6]} 74... Kf7
{[%clk 0:00:04.7]} 75. Rg3 {[%clk 0:00:03.2]} 1-0

[Event "Late-Titled-Tuesday-Blitz-October-03-2023"]
[Site "Chess.com"]
[Date "2023.10.03"]
[Round "9"]
[White "arminmusovic"]
[Black "Nick12772"]
[Result "1-0"]
[WhiteElo "2499"]
[BlackElo "2360"]
[TimeControl "180+1"]
[EndTime "15:42:20 PDT"]
[Termination "arminmusovic won by checkmate"]

1. e4 {[%clk 0:03:00.9]} 1... e6 {[%clk 0:02:59.9]} 2. Qe2 {[%clk 0:03:00.2]}
2... d5 {[%clk 0:03:00.8]} 3. exd5 {[%clk 0:03:00.1]} 3... Qxd5 {[%clk
0:03:01.2]} 4. Nc3 {[%clk 0:02:59.6]} 4... Qd8 {[%clk 0:03:01.8]} 5. g3 {[%clk
0:02:59.5]} 5... Nf6 {[%clk 0:03:02]} 6. Bg2 {[%clk 0:02:59.7]} 6... Be7 {[%clk
0:03:02.7]} 7. Nf3 {[%clk 0:02:59.8]} 7... O-O {[%clk 0:03:03.2]} 8. O-O {[%clk
0:02:58.8]} 8... c5 {[%clk 0:03:03.8]} 9. d3 {[%clk 0:02:56.6]} 9... Nc6 {[%clk
0:03:03.9]} 10. Ne4 {[%clk 0:02:56.5]} 10... Nxe4 {[%clk 0:03:01]} 11. dxe4
{[%clk 0:02:56.4]} 11... b6 {[%clk 0:02:58]} 12. c3 {[%clk 0:02:53.4]} 12... Bb7
{[%clk 0:02:57.8]} 13. Rd1 {[%clk 0:02:47]} 13... Qc7 {[%clk 0:02:57.8]} 14. Bf4
{[%clk 0:02:47.2]} 14... e5 {[%clk 0:02:58]} 15. Be3 {[%clk 0:02:46.7]} 15...
Rad8 {[%clk 0:02:53.4]} 16. Rd5 {[%clk 0:02:25.1]} 16... f6 {[%clk 0:02:38]} 17.
Nh4 {[%clk 0:02:10.1]} 17... Na5 {[%clk 0:02:20.4]} 18. Rxd8 {[%clk 0:01:55.6]}
18... Rxd8 {[%clk 0:02:20.1]} 19. Nf5 {[%clk 0:01:55.1]} 19... Bc8 {[%clk
0:02:19.8]} 20. Bh3 {[%clk 0:01:51]} 20... Bf8 {[%clk 0:01:41.2]} 21. Rd1 {[%clk
0:01:37.8]} 21... Kh8 {[%clk 0:01:23.8]} 22. g4 {[%clk 0:01:13.8]} 22... g6
{[%clk 0:01:14.5]} 23. Ng3 {[%clk 0:01:13.5]} 23... Rxd1+ {[%clk 0:01:13.4]} 24.
Qxd1 {[%clk 0:01:13.3]} 24... Qd6 {[%clk 0:01:09.3]} 25. Qxd6 {[%clk 0:00:56.6]}
25... Bxd6 {[%clk 0:01:10.2]} 26. b3 {[%clk 0:00:57.4]} 26... Kg7 {[%clk
0:01:08.3]} 27. f3 {[%clk 0:00:54.6]} 27... Kf7 {[%clk 0:01:05.7]} 28. Bf1
{[%clk 0:00:53.5]} 28... Bf8 {[%clk 0:01:02]} 29. Kf2 {[%clk 0:00:46.4]} 29...
Be6 {[%clk 0:00:59.7]} 30. Bb5 {[%clk 0:00:44.6]} 30... Ke7 {[%clk 0:00:55.3]}
31. h4 {[%clk 0:00:36.6]} 31... Bd7 {[%clk 0:00:54.6]} 32. Bd3 {[%clk
0:00:33.1]} 32... Be6 {[%clk 0:00:50.6]} 33. Bc2 {[%clk 0:00:32.8]} 33... Kd7
{[%clk 0:00:49.8]} 34. h5 {[%clk 0:00:32.2]} 34... g5 {[%clk 0:00:48.3]} 35. Nf5
{[%clk 0:00:24]} 35... Bxf5 {[%clk 0:00:48.2]} 36. exf5 {[%clk 0:00:24.9]} 36...
h6 {[%clk 0:00:41.5]} 37. Ke2 {[%clk 0:00:25]} 37... Nc6 {[%clk 0:00:36.6]} 38.
Be4 {[%clk 0:00:25.3]} 38... b5 {[%clk 0:00:35.1]} 39. Kd3 {[%clk 0:00:21.7]}
39... a5 {[%clk 0:00:28.6]} 40. Bd5 {[%clk 0:00:20.9]} 40... Kd6 {[%clk
0:00:28.7]} 41. Bf7 {[%clk 0:00:18.9]} 41... Be7 {[%clk 0:00:21.8]} 42. Be8
{[%clk 0:00:18]} 42... Bd8 {[%clk 0:00:19.7]} 43. Ke4 {[%clk 0:00:17.5]} 43...
Bb6 {[%clk 0:00:17]} 44. a3 {[%clk 0:00:16.8]} 44... Ne7 {[%clk 0:00:12]} 45.
Bxb5 {[%clk 0:00:15.7]} 45... Nd5 {[%clk 0:00:11.8]} 46. Bd2 {[%clk 0:00:16.2]}
46... Nc7 {[%clk 0:00:11.5]} 47. Bc4 {[%clk 0:00:15.6]} 47... Ba7 {[%clk
0:00:11.1]} 48. b4 {[%clk 0:00:15.5]} 48... cxb4 {[%clk 0:00:10.3]} 49. cxb4
{[%clk 0:00:16.4]} 49... axb4 {[%clk 0:00:10.5]} 50. axb4 {[%clk 0:00:15.9]}
50... Kc6 {[%clk 0:00:09.1]} 51. Bc1 {[%clk 0:00:14.6]} 51... Bd4 {[%clk
0:00:08]} 52. Ba3 {[%clk 0:00:13.8]} 52... Nb5 {[%clk 0:00:08]} 53. Bd5+ {[%clk
0:00:14.4]} 53... Kb6 {[%clk 0:00:08.2]} 54. Bc1 {[%clk 0:00:08]} 54... Nc3+
{[%clk 0:00:08.6]} 55. Kd3 {[%clk 0:00:08.6]} 55... Nxd5 {[%clk 0:00:09.3]} 56.
Kc4 {[%clk 0:00:09.5]} 56... Nc7 {[%clk 0:00:06.8]} 57. b5 {[%clk 0:00:04.8]}
57... Nxb5 {[%clk 0:00:05.8]} 58. Kd5 {[%clk 0:00:04.7]} 58... Bc5 {[%clk
0:00:04]} 59. Bxg5 {[%clk 0:00:03.8]} 59... fxg5 {[%clk 0:00:03.1]} 60. Kxe5
{[%clk 0:00:04.7]} 60... Kc6 {[%clk 0:00:03]} 61. Ke6 {[%clk 0:00:05.1]} 61...
Bd6 {[%clk 0:00:03.2]} 62. Kf7 {[%clk 0:00:05.9]} 62... Nd4 {[%clk 0:00:03.7]}
63. Kg6 {[%clk 0:00:06.3]} 63... Nxf3 {[%clk 0:00:04.2]} 64. Kxh6 {[%clk
0:00:06.6]} 64... Be5 {[%clk 0:00:04.6]} 65. Kg6 {[%clk 0:00:06.4]} 65... Kd5
{[%clk 0:00:05.2]} 66. h6 {[%clk 0:00:06.6]} 66... Ke4 {[%clk 0:00:05.4]} 67. f6
{[%clk 0:00:06.7]} 67... Kf4 {[%clk 0:00:05.1]} 68. h7 {[%clk 0:00:07.2]} 68...
Bxf6 {[%clk 0:00:05.2]} 69. Kxf6 {[%clk 0:00:07.2]} 69... Ne5 {[%clk 0:00:06.1]}
70. h8=Q {[%clk 0:00:06.9]} 70... Nd7+ {[%clk 0:00:07]} 71. Ke6 {[%clk
0:00:06.8]} 71... Nc5+ {[%clk 0:00:07.4]} 72. Kd5 {[%clk 0:00:07.1]} 72... Ne4
{[%clk 0:00:08.3]} 73. Qe5+ {[%clk 0:00:07.3]} 73... Ke3 {[%clk 0:00:08.5]} 74.
Qxe4+ {[%clk 0:00:08.2]} 74... Kf2 {[%clk 0:00:08.3]} 75. Qf5+ {[%clk
0:00:09.1]} 75... Kg3 {[%clk 0:00:09.2]} 76. Qxg5 {[%clk 0:00:09.5]} 76... Kh3
{[%clk 0:00:09.7]} 77. Qe5 {[%clk 0:00:10.4]} 77... Kh4 {[%clk 0:00:10.5]} 78.
g5 {[%clk 0:00:10.9]} 78... Kh5 {[%clk 0:00:11]} 79. Qg7 {[%clk 0:00:11.1]}
79... Kg4 {[%clk 0:00:11.3]} 80. Ke6 {[%clk 0:00:12]} 80... Kh5 {[%clk
0:00:12.1]} 81. Kf7 {[%clk 0:00:12.9]} 81... Kg4 {[%clk 0:00:12.6]} 82. g6
{[%clk 0:00:13.8]} 82... Kh5 {[%clk 0:00:13.5]} 83. Qh7+ {[%clk 0:00:14.7]}
83... Kg4 {[%clk 0:00:13.9]} 84. g7 {[%clk 0:00:15.6]} 84... Kf4 {[%clk
0:00:14.8]} 85. Qg6 {[%clk 0:00:16.3]} 85... Kf3 {[%clk 0:00:15.2]} 86. Qg5
{[%clk 0:00:16.7]} 86... Ke2 {[%clk 0:00:15.5]} 87. Qf4 {[%clk 0:00:17.1]} 87...
Kd3 {[%clk 0:00:16]} 88. Qe5 {[%clk 0:00:17.5]} 88... Kc4 {[%clk 0:00:16.9]} 89.
Qd6 {[%clk 0:00:17.9]} 89... Kb5 {[%clk 0:00:17.8]} 90. Qc7 {[%clk 0:00:18.4]}
90... Ka6 {[%clk 0:00:18.7]} 91. Qb8 {[%clk 0:00:18.8]} 91... Ka5 {[%clk
0:00:19.1]} 92. Qb7 {[%clk 0:00:19.4]} 92... Ka4 {[%clk 0:00:20]} 93. Qb6 {[%clk
0:00:20]} 93... Ka3 {[%clk 0:00:20.9]} 94. Qb1 {[%clk 0:00:20.6]} 94... Ka4
{[%clk 0:00:21.2]} 95. Qb2 {[%clk 0:00:21.5]} 95... Ka5 {[%clk 0:00:21.8]} 96.
Qb3 {[%clk 0:00:22.4]} 96... Ka6 {[%clk 0:00:22.7]} 97. Qb4 {[%clk 0:00:23.3]}
97... Ka7 {[%clk 0:00:23.4]} 98. Qb5 {[%clk 0:00:24.2]} 98... Ka8 {[%clk
0:00:24]} 99. Ke7 {[%clk 0:00:25.1]} 99... Ka7 {[%clk 0:00:24.4]} 100. Kd7
{[%clk 0:00:26]} 100... Ka8 {[%clk 0:00:25.3]} 101. Kc7 {[%clk 0:00:26.9]}
101... Ka7 {[%clk 0:00:26.2]} 102. Qb7# {[%clk 0:00:27]} 1-0